[Event "Titled Tuesday Blitz August 22 Early 2023"]
[White "subham777"]
[Black "Manukian, Artak"]
[BlackFideId "13301373"]
[WhiteElo "2533"]
[BlackElo "2403"]
[Result "1-0"]
[Round "6"]
[TimeControl "180+1"]
[Date "2023.08.22"]
[WhiteClock "0:00:50"]
[BlackClock "0:01:13"]
[Board "123"]

1. e4 {[%clk 0:03:00]}  c6 {[%clk 0:02:59]} 2. c4 {[%clk 0:03:00]}  d5 {[%clk 0:03:00]} 3. cxd5 {[%clk 0:03:01]}  cxd5 {[%clk 0:03:01]} 4. exd5 {[%clk 0:03:02]}  Nf6 {[%clk 0:03:01]} 5. Nc3 {[%clk 0:03:02]}  Nxd5 {[%clk 0:03:01]} 6. Nf3 {[%clk 0:03:02]}  Nxc3 {[%clk 0:03:01]} 7. bxc3 {[%clk 0:03:03]}  Nc6 {[%clk 0:02:57]} 8. d4 {[%clk 0:03:04]}  Bg4 {[%clk 0:02:54]} 9. Bc4 {[%clk 0:03:02]}  e6 {[%clk 0:02:54]} 10. h3 {[%clk 0:02:57]}  Bh5 {[%clk 0:02:52]} 11. Be3 {[%clk 0:02:46]}  Bd6 {[%clk 0:02:50]} 12. O-O {[%clk 0:02:45]}  O-O {[%clk 0:02:49]} 13. Be2 {[%clk 0:02:44]}  Rc8 {[%clk 0:02:47]} 14. c4 {[%clk 0:02:41]}  Bb8 {[%clk 0:02:44]} 15. d5 {[%clk 0:02:37]}  exd5 {[%clk 0:02:42]} 16. Qxd5 {[%clk 0:02:28]}  Qxd5 {[%clk 0:02:42]} 17. cxd5 {[%clk 0:02:29]}  Nb4 {[%clk 0:02:42]} 18. Rfd1 {[%clk 0:02:13]}  Rfd8 {[%clk 0:02:34]} 19. Rd2 {[%clk 0:01:33]}  Rxd5 {[%clk 0:02:31]} 20. Rb2 {[%clk 0:01:26]}  a5 {[%clk 0:02:18]} 21. a3 {[%clk 0:01:19]}  Nc2 {[%clk 0:02:06]} 22. Rc1 {[%clk 0:01:13]}  Bg6 {[%clk 0:02:04]} 23. Bd1 {[%clk 0:01:09]}  Rxd1+ {[%clk 0:01:46]} 24. Rxd1 {[%clk 0:01:07]}  Nxe3 {[%clk 0:01:43]} 25. fxe3 {[%clk 0:01:01]}  Be4 {[%clk 0:01:35]} 26. Rbd2 {[%clk 0:00:58]}  Bc7 {[%clk 0:01:23]} 27. Rd7 {[%clk 0:00:51]}  Bc6 {[%clk 0:01:13]} 28. Rxc7 {[%clk 0:00:50]} 1-0


[Site "https://www.chess.com"]

[Event "Titled Tuesday Blitz August 22 Early 2023"]
[White "Albertini, Luca"]
[Black "Jovic, Stanoje"]
[WhiteFideId "847038"]
[BlackFideId "905020"]
[WhiteElo "2363"]
[BlackElo "2530"]
[Result "0-1"]
[Round "6"]
[TimeControl "180+1"]
[Date "2023.08.22"]
[WhiteClock "0:02:15"]
[BlackClock "0:02:12"]
[Board "124"]

1. e4 {[%clk 0:03:00]}  c6 {[%clk 0:02:59]} 2. d4 {[%clk 0:03:00]}  d5 {[%clk 0:02:59]} 3. e5 {[%clk 0:03:01]}  c5 {[%clk 0:02:59]} 4. dxc5 {[%clk 0:03:01]}  e6 {[%clk 0:02:59]} 5. Be3 {[%clk 0:03:01]}  Ne7 {[%clk 0:02:59]} 6. c3 {[%clk 0:02:53]}  Nd7 {[%clk 0:02:57]} 7. Bd4 {[%clk 0:02:51]}  Nc6 {[%clk 0:02:55]} 8. Bb5 {[%clk 0:02:50]}  Bxc5 {[%clk 0:02:52]} 9. Nf3 {[%clk 0:02:46]}  Qb6 {[%clk 0:02:49]} 10. Bxc6 {[%clk 0:02:44]}  bxc6 {[%clk 0:02:49]} 11. Bxc5 {[%clk 0:02:40]}  Nxc5 {[%clk 0:02:46]} 12. Qe2 {[%clk 0:02:37]}  Ba6 {[%clk 0:02:44]} 13. Qd2 {[%clk 0:02:24]}  Nd3+ {[%clk 0:02:39]} 14. Kf1 {[%clk 0:02:24]}  Nxf2+ {[%clk 0:02:21]} 15. Kg1 {[%clk 0:02:20]}  Ne4+ {[%clk 0:02:19]} 16. Qd4 {[%clk 0:02:19]}  Qxb2 {[%clk 0:02:18]} 17. c4 {[%clk 0:02:15]}  Qc1+ {[%clk 0:02:13]} 18. Qd1 {[%clk 0:02:14]}  Qxd1+ {[%clk 0:02:12]} 19. Ne1 {[%clk 0:02:15]}  Qxe1# {[%clk 0:02:12]} 0-1


[Site "https://www.chess.com"]

[Event "Titled Tuesday Blitz August 22 Early 2023"]
[White "Shishkov, Andrei"]
[Black "Tiarks, Jann-Christian"]
[WhiteFideId "4500563"]
[BlackFideId "12951595"]
[WhiteElo "2527"]
[BlackElo "2308"]
[Result "0-1"]
[Round "6"]
[TimeControl "180+1"]
[Date "2023.08.22"]
[WhiteClock "0:00:00"]
[BlackClock "0:00:45"]
[Board "125"]

1. d4 {[%clk 0:03:00]}  Nf6 {[%clk 0:02:58]} 2. c4 {[%clk 0:03:01]}  e6 {[%clk 0:02:58]} 3. Nc3 {[%clk 0:03:00]}  d5 {[%clk 0:02:58]} 4. cxd5 {[%clk 0:03:00]}  exd5 {[%clk 0:02:58]} 5. Bg5 {[%clk 0:03:01]}  Be7 {[%clk 0:02:55]} 6. e3 {[%clk 0:03:01]}  Bf5 {[%clk 0:02:51]} 7. Bxf6 {[%clk 0:02:59]}  Bxf6 {[%clk 0:02:51]} 8. Qb3 {[%clk 0:02:56]}  O-O {[%clk 0:02:48]} 9. Qxd5 {[%clk 0:02:45]}  Qc8 {[%clk 0:02:44]} 10. Nf3 {[%clk 0:02:35]}  Nc6 {[%clk 0:02:43]} 11. Qb3 {[%clk 0:02:23]}  Re8 {[%clk 0:02:38]} 12. Be2 {[%clk 0:02:21]}  h6 {[%clk 0:02:30]} 13. O-O {[%clk 0:02:20]}  a6 {[%clk 0:02:28]} 14. Rac1 {[%clk 0:02:08]}  Qd7 {[%clk 0:02:27]} 15. Qd5 {[%clk 0:01:57]}  Rad8 {[%clk 0:02:21]} 16. Qxd7 {[%clk 0:01:56]}  Rxd7 {[%clk 0:02:21]} 17. h3 {[%clk 0:01:50]}  b5 {[%clk 0:02:15]} 18. Nxb5 {[%clk 0:01:45]}  axb5 {[%clk 0:01:55]} 19. Rxc6 {[%clk 0:01:41]}  b4 {[%clk 0:01:50]} 20. Rfc1 {[%clk 0:01:36]}  Ra8 {[%clk 0:01:50]} 21. Ra6 {[%clk 0:01:18]}  Rxa6 {[%clk 0:01:44]} 22. Bxa6 {[%clk 0:01:19]}  Be4 {[%clk 0:01:37]} 23. Bb5 {[%clk 0:01:10]}  Re7 {[%clk 0:01:33]} 24. a3 {[%clk 0:01:09]}  bxa3 {[%clk 0:01:26]} 25. bxa3 {[%clk 0:01:10]}  c6 {[%clk 0:01:21]} 26. Bc4 {[%clk 0:00:59]}  Ra7 {[%clk 0:01:21]} 27. Nd2 {[%clk 0:00:57]}  Bg6 {[%clk 0:01:17]} 28. Bb3 {[%clk 0:00:40]}  Rxa3 {[%clk 0:01:09]} 29. Rxc6 {[%clk 0:00:40]}  Ra1+ {[%clk 0:01:05]} 30. Kh2 {[%clk 0:00:40]}  Bh4 {[%clk 0:01:05]} 31. g3 {[%clk 0:00:38]}  Bf6 {[%clk 0:01:01]} 32. e4 {[%clk 0:00:20]}  Re1 {[%clk 0:01:00]} 33. e5 {[%clk 0:00:20]}  Re2 {[%clk 0:00:58]} 34. exf6 {[%clk 0:00:16]}  Rxf2+ {[%clk 0:00:58]} 35. Kg1 {[%clk 0:00:15]}  Rxd2 {[%clk 0:00:59]} 36. Rc8+ {[%clk 0:00:14]}  Kh7 {[%clk 0:00:58]} 37. fxg7 {[%clk 0:00:14]}  Kxg7 {[%clk 0:00:58]} 38. Rd8 {[%clk 0:00:14]}  Rd3 {[%clk 0:00:56]} 39. Bc4 {[%clk 0:00:13]}  Rxg3+ {[%clk 0:00:56]} 40. Kh2 {[%clk 0:00:14]}  Rg5 {[%clk 0:00:55]} 41. h4 {[%clk 0:00:11]}  Rg4 {[%clk 0:00:55]} 42. Kh3 {[%clk 0:00:12]}  Bf5 {[%clk 0:00:54]} 43. Bd3 {[%clk 0:00:10]}  Rxd4+ {[%clk 0:00:51]} 44. Bxf5 {[%clk 0:00:08]}  Rxd8 {[%clk 0:00:52]} 45. Kg4 {[%clk 0:00:09]}  Kf6 {[%clk 0:00:51]} 46. Bc2 {[%clk 0:00:08]}  Rd5 {[%clk 0:00:49]} 47. Bb3 {[%clk 0:00:07]}  Rb5 {[%clk 0:00:49]} 48. Bc2 {[%clk 0:00:06]}  Rc5 {[%clk 0:00:48]} 49. Bb3 {[%clk 0:00:06]}  Kg7 {[%clk 0:00:48]} 50. Kf4 {[%clk 0:00:04]}  Kg6 {[%clk 0:00:48]} 51. Kg4 {[%clk 0:00:03]}  h5+ {[%clk 0:00:48]} 52. Kf4 {[%clk 0:00:04]}  Kf6 {[%clk 0:00:47]} 53. Bd1 {[%clk 0:00:03]}  Rc4+ {[%clk 0:00:46]} 54. Kg3 {[%clk 0:00:03]}  Kg6 {[%clk 0:00:46]} 55. Be2 {[%clk 0:00:00]}  Rd4 {[%clk 0:00:45]} 0-1


[Site "https://www.chess.com"]

[Event "Titled Tuesday Blitz August 22 Early 2023"]
[White "matenitian"]
[Black "Dilmukhametov, Artur"]
[BlackFideId "24179922"]
[WhiteElo "2511"]
[BlackElo "2188"]
[Result "1-0"]
[Round "6"]
[TimeControl "180+1"]
[Date "2023.08.22"]
[WhiteClock "0:00:05"]
[BlackClock "0:00:04"]
[Board "126"]

1. e4 {[%clk 0:03:00]}  e6 {[%clk 0:02:23]} 2. d4 {[%clk 0:02:59]}  d5 {[%clk 0:02:24]} 3. Nc3 {[%clk 0:02:57]}  Bb4 {[%clk 0:02:22]} 4. e5 {[%clk 0:02:57]}  c5 {[%clk 0:02:22]} 5. a3 {[%clk 0:02:57]}  Ba5 {[%clk 0:02:23]} 6. Nf3 {[%clk 0:02:53]}  Ne7 {[%clk 0:02:17]} 7. dxc5 {[%clk 0:02:42]}  Bxc3+ {[%clk 0:02:13]} 8. bxc3 {[%clk 0:02:39]}  Nd7 {[%clk 0:02:14]} 9. c4 {[%clk 0:02:35]}  Nxc5 {[%clk 0:02:11]} 10. cxd5 {[%clk 0:02:34]}  Qxd5 {[%clk 0:02:10]} 11. Be2 {[%clk 0:02:29]}  Bd7 {[%clk 0:02:05]} 12. O-O {[%clk 0:02:28]}  Qxd1 {[%clk 0:02:02]} 13. Rxd1 {[%clk 0:02:27]}  Nd5 {[%clk 0:02:03]} 14. Bd2 {[%clk 0:02:20]}  Ne4 {[%clk 0:02:03]} 15. Bc4 {[%clk 0:02:07]}  Ndc3 {[%clk 0:01:37]} 16. Bxc3 {[%clk 0:02:05]}  Nxc3 {[%clk 0:01:37]} 17. Rd3 {[%clk 0:02:01]}  Ne2+ {[%clk 0:01:16]} 18. Kf1 {[%clk 0:01:57]}  Nf4 {[%clk 0:01:17]} 19. Rd4 {[%clk 0:01:51]}  Ng6 {[%clk 0:01:17]} 20. Rb1 {[%clk 0:01:46]}  Bc6 {[%clk 0:01:17]} 21. Bb5 {[%clk 0:01:44]}  Bxb5+ {[%clk 0:01:11]} 22. Rxb5 {[%clk 0:01:43]}  b6 {[%clk 0:01:12]} 23. Ke2 {[%clk 0:01:34]}  Ke7 {[%clk 0:01:12]} 24. a4 {[%clk 0:01:30]}  Rhd8 {[%clk 0:01:10]} 25. Rxd8 {[%clk 0:01:21]}  Rxd8 {[%clk 0:01:11]} 26. g3 {[%clk 0:01:21]}  Kd7 {[%clk 0:00:58]} 27. a5 {[%clk 0:01:13]}  Kc7 {[%clk 0:00:57]} 28. axb6+ {[%clk 0:01:12]}  axb6 {[%clk 0:00:58]} 29. Rb4 {[%clk 0:01:04]}  h6 {[%clk 0:00:56]} 30. Rg4 {[%clk 0:00:59]}  Rd5 {[%clk 0:00:55]} 31. h4 {[%clk 0:00:57]}  Rc5 {[%clk 0:00:42]} 32. Kd2 {[%clk 0:00:53]}  Rd5+ {[%clk 0:00:32]} 33. Ke2 {[%clk 0:00:51]}  Rc5 {[%clk 0:00:32]} 34. h5 {[%clk 0:00:49]}  Rxc2+ {[%clk 0:00:32]} 35. Ke1 {[%clk 0:00:36]}  Ne7 {[%clk 0:00:22]} 36. Rxg7 {[%clk 0:00:32]}  Kd8 {[%clk 0:00:14]} 37. Rxf7 {[%clk 0:00:28]}  Nd5 {[%clk 0:00:11]} 38. Nd4 {[%clk 0:00:26]}  Rc4 {[%clk 0:00:11]} 39. Nxe6+ {[%clk 0:00:25]}  Ke8 {[%clk 0:00:11]} 40. Rh7 {[%clk 0:00:20]}  Re4+ {[%clk 0:00:12]} 41. Kf1 {[%clk 0:00:20]}  Rxe5 {[%clk 0:00:13]} 42. Rxh6 {[%clk 0:00:18]}  b5 {[%clk 0:00:09]} 43. Nd4 {[%clk 0:00:18]}  b4 {[%clk 0:00:09]} 44. Rd6 {[%clk 0:00:12]}  Ke7 {[%clk 0:00:06]} 45. Ra6 {[%clk 0:00:11]}  Kd7 {[%clk 0:00:07]} 46. h6 {[%clk 0:00:08]}  Rh5 {[%clk 0:00:05]} 47. Ra7+ {[%clk 0:00:05]}  Kd6 {[%clk 0:00:05]} 48. g4 {[%clk 0:00:05]}  Rh4 {[%clk 0:00:05]} 49. Nf5+ {[%clk 0:00:05]}  Kc6 {[%clk 0:00:04]} 50. Nxh4 {[%clk 0:00:06]}  b3 {[%clk 0:00:05]} 51. Ra1 {[%clk 0:00:05]}  Nc3 {[%clk 0:00:06]} 52. Rc1 {[%clk 0:00:05]}  b2 {[%clk 0:00:04]} 53. Rxc3+ {[%clk 0:00:05]} 1-0


[Site "https://www.chess.com"]

[Event "Titled Tuesday Blitz August 22 Early 2023"]
[White "Piesik, Piotr"]
[Black "Rosenberg, Evan S"]
[WhiteFideId "1136194"]
[BlackFideId "2019299"]
[WhiteElo "2648"]
[BlackElo "2421"]
[Result "1-0"]
[Round "6"]
[TimeControl "180+1"]
[Date "2023.08.22"]
[WhiteClock "0:00:13"]
[BlackClock "0:00:11"]
[Board "130"]

1. Nf3 {[%clk 0:02:58]}  d5 {[%clk 0:02:59]} 2. g3 {[%clk 0:02:58]}  Nd7 {[%clk 0:02:59]} 3. Bg2 {[%clk 0:02:58]}  e5 {[%clk 0:02:59]} 4. d3 {[%clk 0:02:59]}  Ngf6 {[%clk 0:02:59]} 5. O-O {[%clk 0:02:59]}  Bd6 {[%clk 0:03:00]} 6. Nbd2 {[%clk 0:02:59]}  O-O {[%clk 0:02:59]} 7. e4 {[%clk 0:02:59]}  c6 {[%clk 0:02:59]} 8. a4 {[%clk 0:02:59]}  a5 {[%clk 0:02:59]} 9. Qe2 {[%clk 0:02:58]}  Re8 {[%clk 0:02:59]} 10. Nb3 {[%clk 0:02:58]}  h6 {[%clk 0:02:56]} 11. Bd2 {[%clk 0:02:55]}  b6 {[%clk 0:02:52]} 12. Rfd1 {[%clk 0:02:54]}  Ba6 {[%clk 0:02:49]} 13. Qe1 {[%clk 0:02:55]}  d4 {[%clk 0:02:47]} 14. Nh4 {[%clk 0:02:52]}  Bf8 {[%clk 0:02:44]} 15. Nf5 {[%clk 0:02:51]}  Kh7 {[%clk 0:02:42]} 16. Bh3 {[%clk 0:02:46]}  g6 {[%clk 0:02:42]} 17. Nh4 {[%clk 0:02:45]}  Nc5 {[%clk 0:02:37]} 18. Nxc5 {[%clk 0:02:45]}  Bxc5 {[%clk 0:02:36]} 19. f4 {[%clk 0:02:36]}  exf4 {[%clk 0:02:28]} 20. gxf4 {[%clk 0:02:25]}  Nd5 {[%clk 0:02:21]} 21. Qg3 {[%clk 0:02:24]}  Ne3 {[%clk 0:02:18]} 22. Rdc1 {[%clk 0:02:13]}  Be7 {[%clk 0:02:13]} 23. Nf3 {[%clk 0:02:10]}  Bf6 {[%clk 0:02:09]} 24. c4 {[%clk 0:01:44]}  c5 {[%clk 0:02:08]} 25. Kh1 {[%clk 0:01:20]}  Bb7 {[%clk 0:02:07]} 26. Rg1 {[%clk 0:01:19]}  Rg8 {[%clk 0:02:02]} 27. Rae1 {[%clk 0:01:18]}  Qe8 {[%clk 0:01:56]} 28. b3 {[%clk 0:01:15]}  Rd8 {[%clk 0:01:44]} 29. Ng5+ {[%clk 0:00:47]}  Kh8 {[%clk 0:01:26]} 30. Nf3 {[%clk 0:00:25]}  Qe7 {[%clk 0:01:19]} 31. Bxe3 {[%clk 0:00:24]}  dxe3 {[%clk 0:01:19]} 32. Rxe3 {[%clk 0:00:25]}  Rge8 {[%clk 0:00:57]} 33. Bg2 {[%clk 0:00:25]}  Rd7 {[%clk 0:00:49]} 34. e5 {[%clk 0:00:23]}  Bg7 {[%clk 0:00:49]} 35. Nd2 {[%clk 0:00:19]}  Bxg2+ {[%clk 0:00:48]} 36. Qxg2 {[%clk 0:00:19]}  Red8 {[%clk 0:00:49]} 37. Qf3 {[%clk 0:00:18]}  Qh4 {[%clk 0:00:47]} 38. Ne4 {[%clk 0:00:18]}  Rd4 {[%clk 0:00:45]} 39. Qg3 {[%clk 0:00:17]}  Qe7 {[%clk 0:00:34]} 40. Nd6 {[%clk 0:00:17]}  R8xd6 {[%clk 0:00:32]} 41. exd6 {[%clk 0:00:17]}  Qxd6 {[%clk 0:00:33]} 42. f5 {[%clk 0:00:15]}  g5 {[%clk 0:00:26]} 43. Qxd6 {[%clk 0:00:14]}  Rxd6 {[%clk 0:00:26]} 44. Rge1 {[%clk 0:00:14]}  Bd4 {[%clk 0:00:23]} 45. Rf3 {[%clk 0:00:14]}  Kg7 {[%clk 0:00:23]} 46. h3 {[%clk 0:00:14]}  Kf6 {[%clk 0:00:24]} 47. Kg2 {[%clk 0:00:15]}  Bc3 {[%clk 0:00:24]} 48. Re8 {[%clk 0:00:14]}  h5 {[%clk 0:00:21]} 49. Rg8 {[%clk 0:00:14]}  Be5 {[%clk 0:00:16]} 50. Kf1 {[%clk 0:00:14]}  Bf4 {[%clk 0:00:16]} 51. h4 {[%clk 0:00:14]}  Kxf5 {[%clk 0:00:11]} 52. Rxg5+ {[%clk 0:00:13]} 1-0


[Site "https://www.chess.com"]

[Event "Titled Tuesday Blitz August 22 Early 2023"]
[White "Czopor, Maciej"]
[Black "Baghdasaryan, Vahe"]
[WhiteFideId "21805431"]
[BlackFideId "13303139"]
[WhiteElo "2604"]
[BlackElo "2418"]
[Result "1-0"]
[Round "6"]
[TimeControl "180+1"]
[Date "2023.08.22"]
[WhiteClock "0:00:52"]
[BlackClock "0:00:06"]
[Board "132"]

1. d4 {[%clk 0:03:00]}  d5 {[%clk 0:02:58]} 2. c4 {[%clk 0:03:00]}  e6 {[%clk 0:02:58]} 3. g4 {[%clk 0:03:01]}  dxc4 {[%clk 0:02:55]} 4. Bg2 {[%clk 0:03:00]}  c6 {[%clk 0:02:54]} 5. h4 {[%clk 0:02:58]}  Nd7 {[%clk 0:02:51]} 6. Nc3 {[%clk 0:02:58]}  Nb6 {[%clk 0:02:50]} 7. g5 {[%clk 0:02:57]}  h5 {[%clk 0:02:45]} 8. a4 {[%clk 0:02:30]}  a5 {[%clk 0:02:40]} 9. Bf4 {[%clk 0:02:27]}  Ne7 {[%clk 0:02:36]} 10. e4 {[%clk 0:02:21]}  Ng6 {[%clk 0:02:34]} 11. Bg3 {[%clk 0:02:21]}  Bd6 {[%clk 0:02:20]} 12. Nge2 {[%clk 0:02:04]}  Bxg3 {[%clk 0:02:11]} 13. fxg3 {[%clk 0:02:04]}  e5 {[%clk 0:02:05]} 14. d5 {[%clk 0:01:58]}  cxd5 {[%clk 0:02:04]} 15. exd5 {[%clk 0:01:58]}  Bg4 {[%clk 0:02:03]} 16. O-O {[%clk 0:01:59]}  Qd6 {[%clk 0:01:53]} 17. Kh2 {[%clk 0:01:58]}  O-O {[%clk 0:01:41]} 18. Qd2 {[%clk 0:01:57]}  Qb4 {[%clk 0:01:25]} 19. Be4 {[%clk 0:01:48]}  Rad8 {[%clk 0:01:02]} 20. Rf2 {[%clk 0:01:34]}  Ne7 {[%clk 0:00:49]} 21. Qe3 {[%clk 0:01:21]}  Nbxd5 {[%clk 0:00:36]} 22. Bxd5 {[%clk 0:01:16]}  Nxd5 {[%clk 0:00:37]} 23. Qxe5 {[%clk 0:01:17]}  Nxc3 {[%clk 0:00:13]} 24. Nxc3 {[%clk 0:01:12]}  Qb6 {[%clk 0:00:12]} 25. Raf1 {[%clk 0:01:09]}  Rd3 {[%clk 0:00:10]} 26. Nd5 {[%clk 0:00:51]}  Qc5 {[%clk 0:00:09]} 27. Nf6+ {[%clk 0:00:50]}  gxf6 {[%clk 0:00:09]} 28. Qxc5 {[%clk 0:00:51]}  fxg5 {[%clk 0:00:08]} 29. Qxg5+ {[%clk 0:00:51]}  Kh8 {[%clk 0:00:09]} 30. Rxf7 {[%clk 0:00:51]}  Rxf7 {[%clk 0:00:08]} 31. Rxf7 {[%clk 0:00:52]}  Rd2+ {[%clk 0:00:06]} 32. Qxd2 {[%clk 0:00:52]} 1-0


[Site "https://www.chess.com"]

[Event "Titled Tuesday Blitz August 22 Early 2023"]
[White "Caspi, Israel"]
[Black "Vivas Zamora, Fabian Ernesto"]
[WhiteFideId "2807394"]
[BlackFideId "3902480"]
[WhiteElo "2586"]
[BlackElo "2417"]
[Result "0-1"]
[Round "6"]
[TimeControl "180+1"]
[Date "2023.08.22"]
[WhiteClock "0:00:54"]
[BlackClock "0:00:09"]
[Board "133"]

1. d4 {[%clk 0:03:00]}  d5 {[%clk 0:02:56]} 2. c4 {[%clk 0:03:00]}  c6 {[%clk 0:02:56]} 3. Nf3 {[%clk 0:03:00]}  Nf6 {[%clk 0:02:56]} 4. e3 {[%clk 0:03:00]}  e6 {[%clk 0:02:52]} 5. Nc3 {[%clk 0:02:58]}  Nbd7 {[%clk 0:02:52]} 6. b3 {[%clk 0:02:58]}  Bb4 {[%clk 0:02:49]} 7. Bd2 {[%clk 0:02:56]}  O-O {[%clk 0:02:31]} 8. Bd3 {[%clk 0:02:55]}  dxc4 {[%clk 0:02:21]} 9. bxc4 {[%clk 0:02:54]}  e5 {[%clk 0:02:07]} 10. Qc2 {[%clk 0:02:35]}  Qe7 {[%clk 0:01:45]} 11. dxe5 {[%clk 0:02:25]}  Nxe5 {[%clk 0:01:46]} 12. Nxe5 {[%clk 0:02:23]}  Qxe5 {[%clk 0:01:45]} 13. Rb1 {[%clk 0:02:22]}  Ba5 {[%clk 0:01:16]} 14. h3 {[%clk 0:02:04]}  Rd8 {[%clk 0:01:13]} 15. O-O {[%clk 0:01:59]}  Bc7 {[%clk 0:00:56]} 16. f4 {[%clk 0:01:58]}  Qd6 {[%clk 0:00:56]} 17. Bxh7+ {[%clk 0:01:45]}  Nxh7 {[%clk 0:00:57]} 18. Ne4 {[%clk 0:01:45]}  Qd3 {[%clk 0:00:55]} 19. Qxd3 {[%clk 0:01:45]}  Rxd3 {[%clk 0:00:56]} 20. Rb3 {[%clk 0:01:44]}  Rxb3 {[%clk 0:00:55]} 21. axb3 {[%clk 0:01:45]}  Bf5 {[%clk 0:00:54]} 22. Nc5 {[%clk 0:01:41]}  Bb6 {[%clk 0:00:39]} 23. Nxb7 {[%clk 0:01:37]}  Rb8 {[%clk 0:00:26]} 24. Nd6 {[%clk 0:01:35]}  Rd8 {[%clk 0:00:20]} 25. Nxf5 {[%clk 0:01:21]}  Rxd2 {[%clk 0:00:21]} 26. b4 {[%clk 0:01:22]}  g6 {[%clk 0:00:16]} 27. Ne7+ {[%clk 0:01:19]}  Kf8 {[%clk 0:00:16]} 28. Nxc6 {[%clk 0:01:20]}  Bxe3+ {[%clk 0:00:16]} 29. Kh2 {[%clk 0:01:19]}  Nf6 {[%clk 0:00:15]} 30. Rf3 {[%clk 0:01:18]}  Bd4 {[%clk 0:00:13]} 31. c5 {[%clk 0:01:16]}  Nd5 {[%clk 0:00:11]} 32. f5 {[%clk 0:01:08]}  g5 {[%clk 0:00:11]} 33. b5 {[%clk 0:01:04]}  Bxc5 {[%clk 0:00:11]} 34. f6 {[%clk 0:00:58]}  Bd6+ {[%clk 0:00:11]} 35. Kg1 {[%clk 0:00:58]}  Nf4 {[%clk 0:00:11]} 36. g3 {[%clk 0:00:55]}  Bc5+ {[%clk 0:00:10]} 37. Kf1 {[%clk 0:00:54]}  Rd1# {[%clk 0:00:09]} 0-1


[Site "https://www.chess.com"]

[Event "Titled Tuesday Blitz August 22 Early 2023"]
[White "brm72"]
[Black "Romero Ruscalleda, Josep"]
[BlackFideId "2231859"]
[WhiteElo "2571"]
[BlackElo "2415"]
[Result "0-1"]
[Round "6"]
[TimeControl "180+1"]
[Date "2023.08.22"]
[WhiteClock "0:00:46"]
[BlackClock "0:01:24"]
[Board "134"]

1. e4 {[%clk 0:03:00]}  g6 {[%clk 0:03:00]} 2. d4 {[%clk 0:03:00]}  Bg7 {[%clk 0:03:01]} 3. Nc3 {[%clk 0:03:01]}  d6 {[%clk 0:03:01]} 4. Be3 {[%clk 0:03:01]}  a6 {[%clk 0:03:01]} 5. Qd2 {[%clk 0:03:01]}  b5 {[%clk 0:03:01]} 6. h4 {[%clk 0:02:56]}  h5 {[%clk 0:03:00]} 7. Nh3 {[%clk 0:02:56]}  Bxh3 {[%clk 0:03:00]} 8. Rxh3 {[%clk 0:02:55]}  Nf6 {[%clk 0:03:00]} 9. f3 {[%clk 0:02:55]}  Nbd7 {[%clk 0:02:59]} 10. Bd3 {[%clk 0:02:51]}  Rc8 {[%clk 0:02:55]} 11. d5 {[%clk 0:02:49]}  c5 {[%clk 0:02:52]} 12. dxc6 {[%clk 0:02:49]}  Rxc6 {[%clk 0:02:51]} 13. O-O-O {[%clk 0:02:48]}  Nc5 {[%clk 0:02:48]} 14. Kb1 {[%clk 0:02:48]}  O-O {[%clk 0:02:38]} 15. Bh6 {[%clk 0:02:21]}  Nxd3 {[%clk 0:02:24]} 16. cxd3 {[%clk 0:02:15]}  b4 {[%clk 0:02:17]} 17. Ne2 {[%clk 0:02:12]}  Qb6 {[%clk 0:02:07]} 18. d4 {[%clk 0:02:00]}  Rfc8 {[%clk 0:02:02]} 19. Bxg7 {[%clk 0:01:58]}  Kxg7 {[%clk 0:01:58]} 20. e5 {[%clk 0:01:58]}  Nd5 {[%clk 0:01:51]} 21. Ka1 {[%clk 0:01:45]}  dxe5 {[%clk 0:01:46]} 22. dxe5 {[%clk 0:01:43]}  Ne3 {[%clk 0:01:46]} 23. Rdh1 {[%clk 0:01:23]}  Rc2 {[%clk 0:01:42]} 24. Qd3 {[%clk 0:01:18]}  Rd8 {[%clk 0:01:39]} 25. Qe4 {[%clk 0:01:03]}  Rdd2 {[%clk 0:01:33]} 26. f4 {[%clk 0:00:46]}  Rxe2 {[%clk 0:01:24]} 0-1


[Site "https://www.chess.com"]

[Event "Titled Tuesday Blitz August 22 Early 2023"]
[White "Ganiev, Roman"]
[Black "Rom, Jasper"]
[WhiteFideId "4131452"]
[BlackFideId "2023733"]
[WhiteElo "2559"]
[BlackElo "2409"]
[Result "1-0"]
[Round "6"]
[TimeControl "180+1"]
[Date "2023.08.22"]
[WhiteClock "0:00:15"]
[BlackClock "0:00:00"]
[Board "137"]

1. e4 {[%clk 0:03:00]}  e6 {[%clk 0:02:56]} 2. d4 {[%clk 0:02:59]}  d5 {[%clk 0:02:55]} 3. Nc3 {[%clk 0:02:58]}  Nf6 {[%clk 0:02:54]} 4. Bg5 {[%clk 0:02:54]}  dxe4 {[%clk 0:02:51]} 5. Nxe4 {[%clk 0:02:51]}  Be7 {[%clk 0:02:51]} 6. Bxf6 {[%clk 0:02:47]}  gxf6 {[%clk 0:02:51]} 7. Qd2 {[%clk 0:02:47]}  f5 {[%clk 0:02:51]} 8. Nc3 {[%clk 0:02:42]}  a6 {[%clk 0:02:51]} 9. O-O-O {[%clk 0:02:40]}  b5 {[%clk 0:02:50]} 10. Kb1 {[%clk 0:02:18]}  Bb7 {[%clk 0:02:48]} 11. Nge2 {[%clk 0:02:06]}  c5 {[%clk 0:02:32]} 12. Qh6 {[%clk 0:01:46]}  Bg5 {[%clk 0:02:06]} 13. Qh5 {[%clk 0:01:42]}  c4 {[%clk 0:02:03]} 14. d5 {[%clk 0:01:39]}  O-O {[%clk 0:01:33]} 15. dxe6 {[%clk 0:01:35]}  Qe7 {[%clk 0:01:29]} 16. h4 {[%clk 0:01:12]}  Bf6 {[%clk 0:01:26]} 17. exf7+ {[%clk 0:00:55]}  Rxf7 {[%clk 0:01:20]} 18. Rh3 {[%clk 0:00:48]}  Bg7 {[%clk 0:01:04]} 19. Re3 {[%clk 0:00:42]}  Qf8 {[%clk 0:00:56]} 20. Nf4 {[%clk 0:00:37]}  Nd7 {[%clk 0:00:37]} 21. Ne6 {[%clk 0:00:28]}  Qb4 {[%clk 0:00:26]} 22. a3 {[%clk 0:00:17]}  Qa5 {[%clk 0:00:13]} 23. Ng5 {[%clk 0:00:17]}  Rf6 {[%clk 0:00:08]} 24. Qxh7+ {[%clk 0:00:15]}  Kf8 {[%clk 0:00:00]} 25. Rxd7 {[%clk 0:00:15]} 1-0


[Site "https://www.chess.com"]

[Event "Titled Tuesday Blitz August 22 Early 2023"]
[White "Avazkhonov, Alikhon"]
[Black "Hnydiuk, Aleksander"]
[WhiteFideId "14208504"]
[BlackFideId "1109057"]
[WhiteElo "2403"]
[BlackElo "2546"]
[Result "1-0"]
[Round "6"]
[TimeControl "180+1"]
[Date "2023.08.22"]
[WhiteClock "0:02:25"]
[BlackClock "0:00:05"]
[Board "138"]

1. d4 {[%clk 0:03:00]}  c5 {[%clk 0:00:45]} 2. d5 {[%clk 0:02:56]}  g6 {[%clk 0:00:46]} 3. e4 {[%clk 0:02:55]}  Bg7 {[%clk 0:00:46]} 4. c4 {[%clk 0:02:56]}  d6 {[%clk 0:00:44]} 5. Nc3 {[%clk 0:02:57]}  Nf6 {[%clk 0:00:45]} 6. Bd3 {[%clk 0:02:55]}  O-O {[%clk 0:00:45]} 7. Nge2 {[%clk 0:02:56]}  e5 {[%clk 0:00:44]} 8. O-O {[%clk 0:02:57]}  Nh5 {[%clk 0:00:43]} 9. h3 {[%clk 0:02:54]}  f5 {[%clk 0:00:43]} 10. f3 {[%clk 0:02:33]}  Bf6 {[%clk 0:00:36]} 11. exf5 {[%clk 0:02:29]}  gxf5 {[%clk 0:00:36]} 12. g4 {[%clk 0:02:30]}  Ng7 {[%clk 0:00:23]} 13. Ng3 {[%clk 0:02:27]}  Bg5 {[%clk 0:00:20]} 14. Nxf5 {[%clk 0:02:26]}  Nxf5 {[%clk 0:00:19]} 15. Bxf5 {[%clk 0:02:26]}  Bxf5 {[%clk 0:00:19]} 16. gxf5 {[%clk 0:02:26]}  Rxf5 {[%clk 0:00:20]} 17. Ne4 {[%clk 0:02:26]}  Bxc1 {[%clk 0:00:18]} 18. Qxc1 {[%clk 0:02:26]}  Kh8 {[%clk 0:00:05]} 19. Qh6 {[%clk 0:02:25]} 1-0


[Site "https://www.chess.com"]